fUSD/lending_fUSD_20251109
["ID","MTS","AMOUNT","RATE_DAILY","PERIOD"]
[393463159,1762687843499,-150.0,0.00017911,2]
[393463160,1762687843509,-795.0,0.00017911,2]
[393463161,1762687843519,-1000.0,0.00017919,2]
[393463162,1762687843530,-150.0,0.00017945,2]
[393463163,1762687843540,-150.0,0.00017945,2]
[393463164,1762687843549,-150.0,0.00017945,2]
[393463165,1762687843558,-150.0,0.00017945,2]
[393463166,1762687843567,-150.0,0.00017945,2]
[393463167,1762687843577,-250.0,0.00017962,2]
[393463168,1762687843587,-250.0,0.00017962,2]
[393463169,1762687843597,-2000.0,0.00017964,2]
[393463170,1762687843607,-587.0,0.00017966,2]
[393463171,1762687843616,-17044.0,0.00017973,2]
[393463172,1762687843627,-500.0,0.00017973,2]
[393463173,1762687843636,-501.45300556,0.00017973,2]
[393463174,1762687843646,-500.0,0.00017973,2]
[393463175,1762687843656,-501.42288003,0.00017973,2]
[393463176,1762687843667,-500.0,0.00017973,2]
[393463177,1762687843676,-562.61261097,0.00017973,2]
[393463178,1762687843687,-500.0,0.00017973,2]
[393463179,1762687843697,-595.50227902,0.00017973,2]
[393463180,1762687843707,-501.75808297,0.00017973,2]
[393463181,1762687843717,-647.04253758,0.00017973,2]
[393463182,1762687843727,-255.31571118,0.0001798,3]
[393463183,1762687843737,-502.0,0.00017991,2]
[393463184,1762687843747,-343.1362014,0.00017991,2]
[393463185,1762687843758,-31591.89972952,0.00017997,2]
[393463186,1762687843768,-500.0,0.00017998,2]
[393463187,1762687843779,-498.13938589,0.00017998,2]
[393463188,1762687843790,-460.9665,0.00017999,5]
[393463189,1762687843805,-12895.7640541,0.00017999,2]
[393463190,1762687843823,-444143.0764623,0.00017999,2]
[393463191,1762687843836,-202163.386629,0.00017999,2]
[393463192,1762687843847,-151.0,0.00017999,2]
[393463193,1762687843858,-152.777587,0.00017999,2]
[393463194,1762687843869,-151.0,0.00017999,2]
[393463195,1762687843879,-151.0,0.00017999,2]
[393463196,1762687843889,-151.0,0.00017999,2]
[393463197,1762687843899,-151.0,0.00017999,2]
[393463198,1762687843909,-151.0,0.00017999,2]
[393463199,1762687843921,-151.0,0.00017999,2]
[393463200,1762687843931,-151.0,0.00017999,2]
[393463201,1762687843940,-151.0,0.00017999,2]
[393463202,1762687843950,-151.0,0.00017999,2]
[393463203,1762687843959,-151.0,0.00017999,2]
[393463204,1762687843969,-181.665505,0.00017999,2]
[393463205,1762687843979,-151.0,0.00017999,2]
[393463206,1762687843993,-181.665505,0.00017999,2]
[393463207,1762687844002,-151.0,0.00017999,2]
[393463208,1762687844011,-151.0,0.00017999,2]
[393463209,1762687844022,-181.665505,0.00017999,2]
[393463210,1762687844032,-154.737705,0.00017999,2]
[393463211,1762687844042,-181.665505,0.00017999,2]
[393463212,1762687844051,-151.0,0.00017999,2]
[393463213,1762687844061,-151.0,0.00017999,2]
[393463214,1762687844071,-151.0,0.00017999,2]
[393463215,1762687844082,-151.0,0.00017999,2]
[393463216,1762687844091,-151.0,0.00017999,2]
[393463217,1762687844101,-151.0,0.00017999,2]
[393463218,1762687844111,-151.0,0.00017999,2]
[393463219,1762687844121,-151.0,0.00017999,2]
[393463220,1762687844131,-151.0,0.00017999,2]
[393463221,1762687844141,-151.0,0.00017999,2]
[393463222,1762687844151,-151.0,0.00017999,2]
[393463223,1762687844160,-164.235426,0.00017999,2]
[393463224,1762687844170,-151.0,0.00017999,2]
[393463225,1762687844181,-151.0,0.00017999,2]
[393463226,1762687844192,-151.0,0.00017999,2]
[393463227,1762687844202,-151.0,0.00017999,2]
[393463228,1762687844212,-151.0,0.00017999,2]
[393463229,1762687844222,-151.0,0.00017999,2]
[393463230,1762687844241,-151.0,0.00017999,2]
[393463231,1762687844255,-151.0,0.00017999,2]
[393463232,1762687844267,-151.0,0.00017999,2]
[393463233,1762687844278,-151.0,0.00017999,2]
[393463234,1762687844289,-151.0,0.00017999,2]
[393463235,1762687844299,-155.536582,0.00017999,2]
[393463236,1762687844312,-153.227742,0.00017999,2]
[393463237,1762687844323,-151.0,0.00017999,2]
[393463238,1762687844334,-157.307461,0.00017999,2]
[393463239,1762687844344,-153.227742,0.00017999,2]
[393463240,1762687844354,-153.227742,0.00017999,2]
[393463241,1762687844363,-151.0,0.00017999,2]
[393463242,1762687844373,-153.227742,0.00017999,2]
[393463243,1762687844383,-151.0,0.00017999,2]
[393463244,1762687844394,-151.0,0.00017999,2]
[393463245,1762687844406,-151.0,0.00017999,2]
[393463246,1762687844417,-152.386047,0.00017999,2]
[393463247,1762687844427,-151.0,0.00017999,2]
[393463248,1762687844438,-151.0,0.00017999,2]
[393463249,1762687844448,-151.0,0.00017999,2]
[393463250,1762687844458,-151.0,0.00017999,2]
[393463251,1762687844468,-151.0,0.00017999,2]
[393463252,1762687844478,-151.0,0.00017999,2]
[393463253,1762687844487,-154.687613,0.00017999,2]
[393463254,1762687844497,-151.0,0.00017999,2]
[393463255,1762687844507,-151.0,0.00017999,2]
[393463256,1762687844517,-151.0,0.00017999,2]
[393463257,1762687844526,-151.0,0.00017999,2]
[393463258,1762687844535,-151.0,0.00017999,2]
[393463259,1762687844545,-151.0,0.00017999,2]
[393463260,1762687844554,-151.0,0.00017999,2]
[393463261,1762687844565,-151.0,0.00017999,2]
[393463262,1762687844575,-151.0,0.00017999,2]
[393463263,1762687844584,-158.108052,0.00017999,2]
[393463264,1762687844599,-151.0,0.00017999,2]
[393463265,1762687844609,-151.0,0.00017999,2]
[393463266,1762687844619,-151.0,0.00017999,2]
[393463267,1762687844629,-151.0,0.00017999,2]
[393463268,1762687844638,-151.0,0.00017999,2]
[393463269,1762687844648,-151.0,0.00017999,2]
[393463270,1762687844658,-720.147493,0.00017999,2]
[393463271,1762687844668,-176.178797,0.00017999,2]
[393463272,1762687844679,-151.0,0.00017999,2]
[393463273,1762687844690,-720.147493,0.00017999,2]
[393463274,1762687844700,-151.0,0.00017999,2]
[393463275,1762687844710,-151.0,0.00017999,2]
[393463276,1762687844720,-151.0,0.00017999,2]
[393463277,1762687844730,-151.0,0.00017999,2]
[393463278,1762687844740,-720.147493,0.00017999,2]
[393463279,1762687844750,-720.147493,0.00017999,2]
[393463280,1762687844759,-1048.266309,0.00017999,2]
[393463281,1762687844769,-151.0,0.00017999,2]
[393463282,1762687844778,-151.0,0.00017999,2]
[393463283,1762687844787,-1048.266309,0.00017999,2]
[393463284,1762687844796,-151.0,0.00017999,2]
[393463285,1762687844806,-1048.266309,0.00017999,2]
[393463286,1762687844816,-178.888518,0.00017999,2]
[393463287,1762687844825,-1048.266309,0.00017999,2]
[393463288,1762687844835,-153.618254,0.00017999,2]
[393463289,1762687844844,-266.888997,0.00017999,2]
[393463290,1762687844854,-151.0,0.00017999,2]
[393463291,1762687844863,-153.618254,0.00017999,2]
[393463292,1762687844872,-163.679375,0.00017999,2]
[393463293,1762687844882,-153.618254,0.00017999,2]
[393463294,1762687844891,-153.618254,0.00017999,2]
[393463295,1762687844901,-151.0,0.00017999,2]
[393463296,1762687844910,-151.0,0.00017999,2]
[393463297,1762687844919,-151.0,0.00017999,2]
[393463298,1762687844928,-281.786286,0.00017999,2]
[393463299,1762687844937,-281.786286,0.00017999,2]
[393463300,1762687844946,-151.0,0.00017999,2]
[393463301,1762687844960,-281.786286,0.00017999,2]
[393463302,1762687844971,-151.0,0.00017999,2]
[393463303,1762687844983,-281.786286,0.00017999,2]
[393463304,1762687844994,-166.784343,0.00017999,2]
[393463305,1762687845004,-151.0,0.00017999,2]
[393463306,1762687845014,-158.424085,0.00017999,2]
[393463307,1762687845023,-151.0,0.00017999,2]
[393463308,1762687845035,-151.0,0.00017999,2]
[393463309,1762687845044,-166.784343,0.00017999,2]
[393463310,1762687845054,-158.424085,0.00017999,2]
[393463311,1762687845063,-151.0,0.00017999,2]
[393463312,1762687845073,-151.0,0.00017999,2]
[393463313,1762687845082,-255.720552,0.00017999,2]
[393463314,1762687845091,-166.784343,0.00017999,2]
[393463315,1762687845100,-151.0,0.00017999,2]
[393463316,1762687845109,-649.096421,0.00017999,2]
[393463317,1762687845119,-158.424085,0.00017999,2]
[393463318,1762687845128,-151.0,0.00017999,2]
[393463319,1762687845138,-151.0,0.00017999,2]
[393463320,1762687845147,-255.720552,0.00017999,2]
[393463321,1762687845156,-166.784343,0.00017999,2]
[393463322,1762687845165,-649.096421,0.00017999,2]
[393463323,1762687845175,-158.424085,0.00017999,2]
[393463324,1762687845186,-151.0,0.00017999,2]
[393463325,1762687845195,-649.096421,0.00017999,2]
[393463326,1762687845205,-156.527692,0.00017999,2]
[393463327,1762687845214,-649.096421,0.00017999,2]
[393463328,1762687845223,-688.396057,0.00017999,2]
[393463329,1762687845233,-255.720552,0.00017999,2]
[393463330,1762687845243,-688.396057,0.00017999,2]
[393463331,1762687845252,-255.720552,0.00017999,2]
[393463332,1762687845262,-688.396057,0.00017999,2]
[393463333,1762687845271,-196.104165,0.00017999,2]
[393463334,1762687845280,-151.0,0.00017999,2]
[393463335,1762687845290,-688.396057,0.00017999,2]
[393463336,1762687845300,-15408.2449459,0.00017999,2]
[393463337,1762687845310,-151.0,0.00017999,2]
[393463338,1762687845320,-197.743825,0.00017999,2]
[393463339,1762687845487,-151.0,0.00017999,2]
[393463340,1762687845498,-151.0,0.00017999,2]
[393463341,1762687845508,-162.295178,0.00017999,2]
[393463342,1762687845517,-151.0,0.00017999,2]
[393463343,1762687845527,-170.468976,0.00017999,2]
[393463344,1762687845540,-151.0,0.00017999,2]
[393463345,1762687845549,-170.468976,0.00017999,2]
[393463346,1762687845558,-170.468976,0.00017999,2]
[393463347,1762687845568,-995.65575,0.00017999,2]
[393463348,1762687845577,-170.468976,0.00017999,2]
[393463349,1762687845587,-995.65575,0.00017999,2]
[393463350,1762687845596,-995.65575,0.00017999,2]
[393463351,1762687845605,-995.65575,0.00017999,2]
[393463352,1762687845615,-151.0,0.00017999,2]
[393463353,1762687845624,-151.0,0.00017999,2]
[393463354,1762687845633,-155.511441,0.00017999,2]
[393463355,1762687845643,-151.0,0.00017999,2]
[393463356,1762687845652,-160.367703,0.00017999,2]
[393463357,1762687845661,-696.053668,0.00017999,2]
[393463358,1762687845670,-151.0,0.00017999,2]
[393463359,1762687845684,-151.0,0.00017999,2]
[393463360,1762687845693,-696.053668,0.00017999,2]
[393463361,1762687845703,-156.131667,0.00017999,2]
[393463362,1762687845713,-696.053668,0.00017999,2]
[393463363,1762687845722,-151.0,0.00017999,2]
[393463364,1762687845731,-151.0,0.00017999,2]
[393463365,1762687845741,-696.053668,0.00017999,2]
[393463366,1762687845750,-151.0,0.00017999,2]
[393463367,1762687845759,-151.0,0.00017999,2]
[393463368,1762687845768,-151.0,0.00017999,2]
[393463369,1762687845778,-151.0,0.00017999,2]
[393463370,1762687845787,-151.0,0.00017999,2]
[393463371,1762687845796,-151.0,0.00017999,2]
[393463372,1762687845805,-241.372738,0.00017999,2]
[393463373,1762687845814,-260.266172,0.00017999,2]
[393463374,1762687845824,-1926.880093,0.00017999,2]
[393463375,1762687845832,-241.372738,0.00017999,2]
[393463376,1762687845843,-1926.880093,0.00017999,2]
[393463377,1762687845852,-241.372738,0.00017999,2]
[393463378,1762687845861,-1926.880093,0.00017999,2]
[393463379,1762687845871,-241.372738,0.00017999,2]
[393463380,1762687845882,-1926.880093,0.00017999,2]
[393463381,1762687845892,-153.31573,0.00017999,2]
[393463382,1762687845902,-176.311602,0.00017999,2]
[393463383,1762687845911,-151.0,0.00017999,2]
[393463384,1762687845920,-176.311602,0.00017999,2]
[393463385,1762687845930,-151.0,0.00017999,2]
[393463386,1762687845939,-176.311602,0.00017999,2]
[393463387,1762687845949,-182.828569,0.00017999,2]
[393463388,1762687845958,-176.311602,0.00017999,2]
[393463389,1762687845967,-151.0,0.00017999,2]
[393463390,1762687845977,-160.200851,0.00017999,2]
[393463391,1762687845991,-151.0,0.00017999,2]
[393463392,1762687846000,-151.0,0.00017999,2]
[393463393,1762687846010,-1031.362102,0.00017999,2]
[393463394,1762687846020,-1031.362102,0.00017999,2]
[393463395,1762687846031,-1031.362102,0.00017999,2]
[393463396,1762687846041,-1031.362102,0.00017999,2]
[393463397,1762687846051,-151.514801,0.00017999,2]
[393463398,1762687846062,-154.628871,0.00017999,2]
[393463399,1762687846072,-154.628871,0.00017999,2]
[393463400,1762687846081,-2567.176262,0.00017999,2]
[393463401,1762687846091,-154.628871,0.00017999,2]
[393463402,1762687846100,-2567.176262,0.00017999,2]
[393463404,1762687846109,-154.628871,0.00017999,2]
[393463405,1762687846119,-191.059476,0.00017999,2]
[393463406,1762687846129,-151.0,0.00017999,2]
[393463407,1762687846138,-2567.176262,0.00017999,2]
[393463408,1762687846147,-191.059476,0.00017999,2]
[393463409,1762687846157,-151.0,0.00017999,2]
[393463411,1762687846166,-2567.176262,0.00017999,2]
[393463412,1762687846176,-336.546776,0.00017999,2]
[393463413,1762687846188,-191.059476,0.00017999,2]
[393463414,1762687846197,-151.0,0.00017999,2]
[393463415,1762687846207,-336.546776,0.00017999,2]
[393463417,1762687846217,-151.0,0.00017999,2]
[393463418,1762687846227,-336.546776,0.00017999,2]
[393463419,1762687846237,-191.059476,0.00017999,2]
[393463420,1762687846246,-336.546776,0.00017999,2]
[393463421,1762687846268,-338.9931,0.00017999,2]
[393463422,1762687846279,-338.9931,0.00017999,2]
[393463423,1762687846289,-338.9931,0.00017999,2]
[393463424,1762687846299,-338.9931,0.00017999,2]
[393463425,1762687846310,-298.153219,0.00017999,2]
[393463426,1762687846320,-298.153219,0.00017999,2]
[393463427,1762687846330,-298.153219,0.00017999,2]
[393463428,1762687846340,-298.153219,0.00017999,2]
[393463429,1762687846351,-151.0,0.00017999,2]
[393463430,1762687846363,-151.0,0.00017999,2]
[393463431,1762687846373,-151.0,0.00017999,2]
[393463432,1762687846383,-165.702384,0.00017999,2]
[393463433,1762687846393,-151.0,0.00017999,2]
[393463434,1762687846402,-151.0,0.00017999,2]
[393463435,1762687846412,-151.0,0.00017999,2]
[393463436,1762687846422,-254.161823,0.00017999,2]
[393463437,1762687846433,-151.0,0.00017999,2]
[393463438,1762687846442,-151.0,0.00017999,2]
[393463439,1762687846457,-4451.081586,0.00017999,2]
[393463440,1762687846467,-151.0,0.00017999,2]
[393463441,1762687846477,-4451.081586,0.00017999,2]
[393463442,1762687846487,-151.0,0.00017999,2]
[393463443,1762687846497,-4451.081586,0.00017999,2]
[393463444,1762687846507,-151.0,0.00017999,2]
[393463445,1762687846517,-151.0,0.00017999,2]
[393463446,1762687846527,-4451.081586,0.00017999,2]
[393463447,1762687846536,-151.0,0.00017999,2]
[393463448,1762687846546,-5205374.11967413,0.00018,2]
[393463449,1762687846972,-151.0,0.0001699,2]
[393463450,1762687846983,-208.45428234,0.00017031,2]
[393463451,1762687846996,-474.82264656,0.00017031,2]
[393463452,1762687847007,-316.7230711,0.00017031,2]
[393463453,1762687847015,-39.95929373,0.00017031,2]
[393463454,1762687847027,-121.22170627,0.00017031,2]
[393463455,1762687847037,-151.0,0.00017999,2]
[393463456,1762687847047,-372.15829373,0.00018,2]
[393463457,1762687847576,-1.7e-07,0.0001699,2]
[393463458,1762687847587,-1007.15892383,0.0001699,2]
[393463459,1762687847597,-954505.30237783,0.00018,2]
[393463460,1762687847606,-140213.47817788,0.00018,2]
[393463461,1762687847615,-827.0,0.00018,2]
[393463462,1762687847624,-827.0,0.00018,2]
[393463463,1762687847633,-827.0,0.00018,2]
[393463464,1762687847642,-827.0,0.00018,2]
[393463465,1762687847652,-151.0,0.00018,2]
[393463466,1762687847661,-928.31,0.00018,7]
[393463467,1762687847670,-158.935145,0.00018,2]
[393463468,1762687847679,-151.0,0.00018,2]
[393463469,1762687847689,-151.0,0.00018,2]
[393463470,1762687847698,-151.0,0.00018,2]
[393463471,1762687847707,-151.0,0.00018,2]
[393463472,1762687847716,-170.193313,0.00018,2]
[393463473,1762687847725,-153.672685,0.00018,2]
[393463474,1762687847735,-151.0,0.00018,2]
[393463475,1762687847743,-151.0,0.00018,2]
[393463476,1762687847752,-151.0,0.00018,2]
[393463477,1762687847762,-151.0,0.00018,2]
[393463478,1762687847771,-151.0,0.00018,2]
[393463479,1762687847780,-151.0,0.00018,2]
[393463480,1762687847789,-152.599887,0.00018,2]
[393463481,1762687847799,-153.908026,0.00018,2]
[393463482,1762687847808,-153.831829,0.00018,2]
[393463483,1762687847817,-151.0,0.00018,2]
[393463484,1762687847826,-152.608705,0.00018,2]
[393463485,1762687847835,-151.0,0.00018,2]
[393463486,1762687847844,-151.0,0.00018,2]
[393463487,1762687847855,-151.0,0.00018,2]
[393463488,1762687847864,-151.0,0.00018,2]
[393463489,1762687847873,-151.0,0.00018,2]
[393463490,1762687847883,-151.0,0.00018,2]
[393463491,1762687847892,-151.0,0.00018,2]
[393463492,1762687847903,-151.0,0.00018,2]
[393463493,1762687847911,-151.0,0.00018,2]
[393463494,1762687847920,-151.0,0.00018,2]
[393463495,1762687847942,-151.0,0.00018,2]
[393463496,1762687847952,-151.0,0.00018,2]
[393463497,1762687847961,-151.0,0.00018,2]
[393463498,1762687847971,-151.0,0.00018,2]
[393463499,1762687847982,-151.0,0.00018,2]
[393463500,1762687847993,-151.0,0.00018,2]
[393463501,1762687848002,-151.0,0.00018,2]
[393463502,1762687848012,-151.0,0.00018,2]
[393463503,1762687848022,-158.729657,0.00018,2]
[393463504,1762687848033,-151.0,0.00018,2]
[393463505,1762687848043,-151.0,0.00018,2]
[393463506,1762687848053,-151.0,0.00018,2]
[393463507,1762687848062,-151.0,0.00018,2]
[393463508,1762687848072,-151.0,0.00018,2]
[393463509,1762687848081,-159.665485,0.00018,2]
[393463510,1762687848091,-250.746195,0.00018,2]
[393463511,1762687848100,-151.0,0.00018,2]
[393463512,1762687848109,-151.0,0.00018,2]
[393463513,1762687848120,-151.0,0.00018,2]
[393463514,1762687848129,-212.837481,0.00018,2]
[393463515,1762687848139,-151.0,0.00018,2]
[393463516,1762687848148,-151.0,0.00018,2]
[393463517,1762687848158,-212.837481,0.00018,2]
[393463518,1762687848167,-157.091898,0.00018,2]
[393463519,1762687848177,-212.837481,0.00018,2]
[393463520,1762687848188,-151.0,0.00018,2]
[393463521,1762687848198,-151.0,0.00018,2]
[393463522,1762687848207,-212.837481,0.00018,2]
[393463523,1762687848217,-151.0,0.00018,2]
[393463524,1762687848227,-151.0,0.00018,2]
[393463525,1762687848236,-151.0,0.00018,2]
[393463526,1762687848246,-151.0,0.00018,2]
[393463527,1762687848255,-151.0,0.00018,2]
[393463528,1762687848266,-151.0,0.00018,2]
[393463529,1762687848279,-151.0,0.00018,2]
[393463530,1762687848289,-151.0,0.00018,2]
[393463531,1762687848298,-151.0,0.00018,2]
[393463532,1762687848308,-151.0,0.00018,2]
[393463533,1762687848318,-151.0,0.00018,2]
[393463534,1762687848332,-151.0,0.00018,2]
[393463535,1762687848341,-151.0,0.00018,2]
[393463536,1762687848350,-151.0,0.00018,2]
[393463537,1762687848360,-151.0,0.00018,2]
[393463538,1762687848370,-214.43224,0.00018,2]
[393463539,1762687848379,-151.0,0.00018,2]
[393463540,1762687848389,-214.43224,0.00018,2]
[393463541,1762687848398,-214.43224,0.00018,2]
[393463542,1762687848409,-214.43224,0.00018,2]
[393463543,1762687848419,-152.441528,0.00018,2]
[393463544,1762687848428,-151.0,0.00018,2]
[393463545,1762687848439,-151.0,0.00018,2]
[393463546,1762687848449,-151.0,0.00018,2]
[393463547,1762687848459,-151.0,0.00018,2]
[393463548,1762687848468,-151.0,0.00018,2]
[393463549,1762687848477,-151.0,0.00018,2]
[393463550,1762687848487,-151.0,0.00018,2]
[393463551,1762687848498,-151.0,0.00018,2]
[393463552,1762687848508,-151.0,0.00018,2]
[393463553,1762687848519,-151.0,0.00018,2]
[393463554,1762687848528,-151.0,0.00018,2]
[393463555,1762687848538,-151.0,0.00018,2]
[393463556,1762687848547,-151.0,0.00018,2]
[393463557,1762687848556,-151.0,0.00018,2]
[393463558,1762687848566,-206.496713,0.00018,2]
[393463559,1762687848575,-206.496713,0.00018,2]
[393463560,1762687848585,-151.0,0.00018,2]
[393463561,1762687848594,-206.496713,0.00018,2]
[393463562,1762687848603,-206.496713,0.00018,2]
[393463563,1762687848613,-151.0,0.00018,2]
[393463564,1762687848622,-151.0,0.00018,2]
[393463565,1762687848632,-151.0,0.00018,2]
[393463566,1762687848641,-151.0,0.00018,2]
[393463567,1762687848650,-151.0,0.00018,2]
[393463568,1762687848660,-202.515714,0.00018,2]
[393463569,1762687848669,-151.0,0.00018,2]
[393463570,1762687848679,-151.0,0.00018,2]
[393463571,1762687848689,-151.0,0.00018,2]
[393463572,1762687848699,-151.0,0.00018,2]
[393463573,1762687848708,-151.0,0.00018,2]
[393463574,1762687848717,-151.0,0.00018,2]
[393463575,1762687848727,-151.0,0.00018,2]
[393463576,1762687848736,-151.0,0.00018,2]
[393463577,1762687848745,-151.0,0.00018,2]
[393463578,1762687848755,-151.0,0.00018,2]
[393463579,1762687848764,-151.0,0.00018,2]
[393463580,1762687848774,-151.0,0.00018,2]
[393463581,1762687848783,-151.0,0.00018,2]
[393463582,1762687848792,-161.845655,0.00018,2]
[393463583,1762687848801,-151.0,0.00018,2]
[393463584,1762687848811,-151.0,0.00018,2]
[393463585,1762687848820,-151.0,0.00018,2]
[393463586,1762687848829,-151.0,0.00018,2]
[393463587,1762687848839,-151.0,0.00018,2]
[393463588,1762687848848,-233.507189,0.00018,2]
[393463589,1762687848857,-151.0,0.00018,2]
[393463590,1762687848871,-181.665505,0.00018,2]
[393463591,1762687848880,-151.0,0.00018,2]
[393463592,1762687848890,-181.665505,0.00018,2]
[393463593,1762687848899,-151.0,0.00018,2]
[393463594,1762687848909,-151.0,0.00018,2]
[393463595,1762687848918,-181.665505,0.00018,2]
[393463596,1762687848928,-181.665505,0.00018,2]
[393463597,1762687848939,-151.0,0.00018,2]
[393463598,1762687848949,-151.0,0.00018,2]
[393463599,1762687848958,-151.0,0.00018,2]
[393463600,1762687848968,-151.0,0.00018,2]
[393463601,1762687848977,-151.0,0.00018,2]
[393463602,1762687848992,-151.0,0.00018,2]
[393463603,1762687849001,-151.0,0.00018,2]
[393463604,1762687849011,-5453810.10132233,0.00018,2]
[393463605,1762687849312,-151.0,0.0001699,2]
[393463606,1762687849323,-1007.158924,0.0001699,2]
[393463607,1762687849333,-2563.441076,0.00017158,2]
[393463608,1762687849344,-345.69,0.00017158,2]
[393463609,1762687849357,-31138.88585728,0.00017158,2]
[393463610,1762687849368,-1007.158924,0.00017999,2]
[393463611,1762687849378,-151.0,0.00017999,2]
[393463612,1762687849387,-1007.158924,0.00017999,2]
[393463613,1762687849396,-226182.85013785,0.00018,2]
[393463614,1762687849731,-1007.158924,0.0001699,2]
[393463615,1762687849741,-1007.158924,0.0001699,2]
[393463616,1762687849755,-1007.158924,0.00017999,2]
[393463617,1762687849764,-17072.53475804,0.00018,2]
[393463618,1762687849776,-468.65005224,0.00018,2]
[393463619,1762687849791,-659812.51143077,0.00018,2]
[393463620,1762687884358,256.61905205,0.0003013,120]
[393463621,1762687909306,155.3901,0.000149,2]
[393463622,1762687986907,460.9665,0.00015593,5]
[393463626,1762688149059,-274.74085222,0.000152,2]
[393463627,1762688151711,-172.37660578,0.000152,2]
[393463628,1762688155968,-190.74092781,0.000152,2]
[393463629,1762688157890,-313.46361941,0.000152,2]
[393463630,1762688164077,-422.01915761,0.00015124,2]
[393463631,1762688168365,-179.5482505,0.00015124,2]
[393463632,1762688170285,-276.37045789,0.00015124,2]
[393463633,1762688170308,-87.39731315,0.000152,2]
[393463634,1762688209707,-162.60775548,0.000152,2]
[393463635,1762688209728,-14.79224452,0.00015219,2]
[393463636,1762688213721,-167.02259042,0.00015219,2]
[393463637,1762688239288,-268.31203455,0.00015142,2]
[393463638,1762688240591,-307.37600173,0.00015142,2]
[393463639,1762688245567,-159.79474072,0.00015142,2]
[393463640,1762688245588,-4.82002255,0.00015219,2]
[393463641,1762688247824,-8.36514251,0.00015219,2]
[393463642,1762688247845,-151.37485749,0.00015239,2]
[393463643,1762688299066,-173.36051182,0.00015,2]
[393463644,1762688300947,-151.0,0.00015,2]
[393463645,1762688304300,-201.50342325,0.00015,2]
[393463646,1762688304322,-43.54765818,0.00015239,2]
[393463647,1762688305850,-55.07748433,0.00015239,2]
[393463648,1762688305874,-241.86447591,0.00015244,2]
[393463649,1762688309381,-271.48907211,0.00015244,2]
[393463650,1762688311237,-160.51980076,0.00015244,2]
[393463651,1762688314737,-151.00466367,0.00015244,2]
[393463652,1762688316392,-201.51737293,0.00015244,2]
[393463653,1762688320715,-174.32606739,0.00015244,2]
[393463654,1762688324016,-151.0,0.00015244,2]
[393463655,1762688327636,-176.33,0.000152,2]
[393463656,1762688344167,-162.18,0.000152,2]
[393463657,1762688346724,-161.49,0.000152,2]
[393463658,1762688346746,-45.3442872,0.00015244,2]
[393463659,1762688348560,-154.74173552,0.00015244,2]
[393463660,1762688350584,-208.25426796,0.00015244,2]
[393463662,1762688353871,-156.315875,0.00015244,2]
[393463663,1762688355190,1000.0,0.00013699,2]
[393463664,1762688374183,-248.407888,0.000152,2]
[393463665,1762688384584,500.0,0.00014613,2]